Cogmind - Beta 17 @@@ ROGUE MODE // 2026.07.24 @ 23:27:03 Player: Noggity Result: Destroyed by 05-FBQ(j) with Overtuned Pulse Rifle Performance ------------- Evolutions (0) 0 Regions Visited (3) 600 Robots Destroyed (6) 30 Value Destroyed (144) 144 Prototype IDs (8) 160 Alien Tech Used (0) 0 Bonus (800) 800 TOTAL SCORE: 1734 Bonus ------- Registered with UFD 300 Met Optimus in HQ 500 Cogmind --------- Core Integrity 0/250 Matter 280/300 Energy 90/100 System Corruption 0% Temperature Cool (12) Movement Walking (260) Ox2 Location -9/Scraptown Parts ------- > --- POWER (1) -------- (None) > --- PROPULSION (2) --- Aluminum Leg Flexi-carbon Leg > --- UTILITY (2) ------ Huge Storage Unit Improved Signal Interpreter > --- WEAPON (2) ------- Flak Gun > --- INVENTORY (25) --- Light Deuterium Engine Improved Deuterium Engine Overtuned Treads Overtuned Treads Overtuned Titanium Leg VSS Leg Large Storage Unit Seismic Detector Propulsion Shielding Light Armor Plating Makeshift Light Armor Plating Makeshift Light Armor Plating Hacking Suite Improved System Shield Heavy Battle Rifle Heavy Battle Rifle Heavy Battle Rifle Grenade Launcher Long-range Missile Launcher DRS Beacon (Ready) Botcube Peak State ------------ > --- POWER ------------ Fission Core > --- PROPULSION ------- Overtuned Treads Flexi-carbon Leg > --- UTILITY ---------- Huge Storage Unit Improved Signal Interpreter > --- WEAPON ----------- Subdweller Laser Battle Rifle > --- INVENTORY -------- Light Ion Engine Subdweller Power Source Light Deuterium Engine Aluminum Leg Disposable Heat Sink Medium Storage Unit Large Storage Unit Seismic Detector Propulsion Shielding Light Armor Plating Hacking Suite Improved System Shield Medium Laser Small Laser Spread Laser Assault Rifle Flak Gun Grenade Launcher Long-range Missile Launcher Flamer Scrap Shield Fragment DRS Beacon Botcube [Rating: 26] Favorites ----------- Power Fission Core Engine Light Ion Engine Power Core Fission Core Propulsion Aluminum Leg Treads Overtuned Treads Leg Aluminum Leg Wheel Subdweller Monowheel Utility Huge Storage Unit Device Seismic Detector Storage Huge Storage Unit Processor Improved Signal Interpreter Protection Propulsion Shielding Weapon Subdweller Laser Energy Gun Subdweller Laser Ballistic Gun Battle Rifle Launcher Grenade Launcher Build | -11 -10 -10 -9 ------- Run | Yrd Mat Sub Scr Slots Evolved . | . . . . Power . | . . . . Propulsion . | . . . . Utility . | . . . . Weapon . | . . . . Parts Attached 22 | 6 2 7 7 Power 3 | 1 . . 2 Engine 2 | 1 . . 1 Core 1 | . . . 1 Reactor . | . . . . Propulsion 7 | 2 . 2 3 Treads 2 | . . . 2 Leg 3 | 2 . . 1 Wheel 2 | . . 2 . Hover . | . . . . Flight . | . . . . Utility 6 | 1 2 2 1 Device 1 | 1 . . . Storage 3 | . 2 1 . Processor 1 | . . . 1 Hackware . | . . . . Protection 1 | . . 1 . Artifact . | . . . . Weapon 6 | 2 . 3 1 Energy Gun 2 | 1 . 1 . Energy Cannon . | . . . . Ballistic Gun 3 | 1 . 1 1 Ballistic Cannon . | . . . . Launcher 1 | . . 1 . Special Weapon . | . . . . Impact Weapon . | . . . . Slashing Weapon . | . . . . Piercing Weapon . | . . . . Special Melee Weapon . | . . . . Unidentified Prototypes . | . . . . Parts Lost 2 | . . . 2 Power 1 | . . . 1 Propulsion . | . . . . Utility . | . . . . Weapon 1 | . . . 1 Highest Loss Streak 2 | . . . 2 To Critical Strikes . | . . . . Average Backups 18 | . 3 9 20 Power 2 | . . . 2 Propulsion . | . . . . Utility 6 | . 1 4 7 Weapon 8 | . 1 3 9 Tool/Special . | . . . . Unused Backups 20 | . . 1 19 Power 2 | . . . 2 Propulsion 2 | . . . 2 Utility 7 | . . . 7 Weapon 8 | . . . 8 Tool/Special 1 | . . 1 . Average Slot Usage (%) 98 | . 92 99 99 Engine 2 | . 14 14 . Core 10 | . . . 13 Leg 20 | . 28 15 20 Wheel 6 | . . 12 6 Device 1 | . 14 7 . Storage 13 | . 7 14 14 Processor 9 | . . . 11 Protection 2 | . . 5 2 Energy Gun 13 | . 14 14 13 Ballistic Gun 13 | . 14 13 13 Peak Build Rating 26 | 6 7 13 26 Average Rating 19 | 4 6 9 22 On Entrance 6 | . 6 7 13 Avg Prop Armor Cover (%) 5 | . . 9 5 Naked Turns . | . . . . Heaviest Build 97 | 8 28 90 97 Greatest Support 40 | 20 20 40 40 Greatest Overweight (x) 9 | . 1 4 9 Average Overweight (x) 2 | . . . 3 Largest Inventory Capacity 25 | 5 15 25 25 Average Capacity 22 | 5 7 16 25 Most Carried 25 | 1 6 16 25 Average Carried 20 | . 3 10 22 Final Capacity 25 | 5 10 25 25 Final Carried 21 | 1 6 16 21 Class Distribution -------------------- 100% | Mutant Dominant Class ---------------- Mutant | -10/Materials Mutant | -10/Subcaves Mutant | -9/Scraptown Resources | -11 -10 -10 -9 ----------- Run | Yrd Mat Sub Scr Matter Collected 531 | 272 43 99 117 Remotely . | . . . . Salvage Created 147 | 52 43 52 . Parts 14 | 3 5 6 . Haulers Intercepted . | . . . . Recyclers Shooed 1 | . 1 . . Parts Field Recycled . | . . . . Retrieved Matter . | . . . . Parts Self-Destructed 4 | . . 4 . Prevented . | . . . . Parts Restored . | . . . . Kills | -11 -10 -10 -9 ------- Run | Yrd Mat Sub Scr Combat Hostiles Destroyed 3 | 1 . 2 . Guns 2 | 1 . 1 . AOE 1 | . . 1 . Classes Destroyed 4 | 2 1 1 . Tunneler 2 | 1 1 . . Operator 1 | . 1 . . Grunt 1 | 1 . . . Subdweller 2 | . . 2 . Best Kill Streak 2 | 2 1 1 . Combat Bots Only 1 | 1 . 1 . Max Kills in Single Turn 1 | 1 1 1 . Gunslinging . | . . . . Exploded 1 | . . 1 . Melee . | . . . . Uniques/NPCs Destroyed . | . . . . Combat | -11 -10 -10 -9 -------- Run | Yrd Mat Sub Scr Hostile Shots Fired 91 | 3 . 12 76 Missed 26 | 1 . 2 23 Hits 65 | 2 . 10 53 Projectile 65 | 2 . 10 53 Critical Strikes 5 | . . 1 4 Damage Taken 940 | 21 . 208 711 Core 267 | . . 39 228 Absorbed by Shields . | . . . . Core Remaining (%) 100 | 100 . . . Volleys Fired 25 | 4 10 11 . Largest 2 | 2 2 2 . Hottest 90 | 70 70 90 . Shots Fired 50 | 8 20 22 . Gun 47 | 8 20 19 . Cannon . | . . . . Launcher 3 | . . 3 . Special . | . . . . Kinetic 22 | 4 10 8 . Thermal 25 | 4 10 11 . Explosive 3 | . . 3 . Electromagnetic . | . . . . Robot Hit Streak 7 | 1 5 7 . Robot Miss Streak 4 | 2 4 1 . Penetration Max . | . . . . Secondary Targets . | . . . . Shots Hit Robots 26 | 3 8 15 . Core Hits 9 | 2 3 4 . Critical Kills . | . . . . Critical Parts Destroyed 1 | 1 . . . Critical Strikes 1 | 1 . . . Destroy 1 | 1 . . . Melee Attacks . | . . . . Impact . | . . . . Slashing . | . . . . Piercing . | . . . . Sneak Attacks . | . . . . Combat Hostiles . | . . . . Follow-up Attacks . | . . . . Damage Inflicted 620 | 39 133 448 . Guns 386 | 39 123 224 . Cannons . | . . . . Explosions 224 | . . 224 . Melee . | . . . . Ramming 10 | . 10 . . Kinetic 173 | 39 73 61 . Thermal 213 | . 50 163 . Explosive 224 | . . 224 . Electromagnetic . | . . . . Impact . | . . . . Slashing . | . . . . Piercing . | . . . . Highest Corruption . | . . . . Average Corruption . | . . . . Corruption Purged . | . . . . Corruption Blocked . | . . . . Overload Shots . | . . . . Overflow Damage . | . . . . Projectiles . | . . . . Explosions . | . . . . Melee . | . . . . Knockbacks . | . . . . Impact . | . . . . Kinetic . | . . . . Secondary . | . . . . Self-Inflicted Damage . | . . . . Shots . | . . . . Rammed . | . . . . Targets Rammed 1 | . 1 . . Kicked 1 | . 1 . . Crushed . | . . . . Highest Temperature 24 | 24 18 . 20 Average Temperature 10 | 12 9 . 11 Received Heat Transfer 406 | 12 . 48 346 Siege Activations . | . . . . Martial Activations . | . . . . Shielding Activations . | . . . . Robots Disrupted . | . . . . Combat Hostiles . | . . . . Robots Corrupted . | . . . . Combat Hostiles . | . . . . Parts Fried . | . . . . Impact Corruptions . | . . . . Robots Melted . | . . . . Combat Hostiles . | . . . . Parts Melted . | . . . . Heat Transferred 348 | . 148 200 . Parts Sabotaged . | . . . . Parts Stolen . | . . . . Parts Stripped . | . . . . Power Chain Reactions . | . . . . Alert | -11 -10 -10 -9 ------- Run | Yrd Mat Sub Scr Maximum Alert Level . | . . . . Low Security (%) 100 | 100 100 . . Level 1 . | . . . . Level 2 . | . . . . Level 3 . | . . . . Level 4 . | . . . . Level 5 . | . . . . High Security . | . . . . Max Security . | . . . . Peak Influence 25 | 25 14 . . Initial 9 | . 9 . . Average 1 | 4 1 . . Influence Increases 44 | 25 19 . . Destroy 0b10 Robot/C 20 | 20 . . . Destroy 0b10 Robot/NC 15 | 5 10 . . Successful Hack 9 | . 9 . . Influence Decreases 44 | 10 34 . . Entered New Map 6 | . 6 . . Time Decay 38 | 10 28 . . Squads Dispatched 2 | . 2 . . Investigation . | . . . . Extermination . | . . . . Reinforcement 2 | . 2 . . Assault . | . . . . Garrison . | . . . . Intercept . | . . . . Searches Triggered . | . . . . Construction Impeded . | . . . . Haulers Reinforced . | . . . . Active Scanning Responses . | . . . . Cargo Convoy Interrupts . | . . . . Stealth | -11 -10 -10 -9 --------- Run | Yrd Mat Sub Scr Distress Signals . | . . . . Communications Jammed . | . . . . Distress Signals . | . . . . Times Spotted 24 | 1 3 2 18 Peak Tracking Total 9 | 1 1 2 9 Tactical Retreats . | . . . . Traps | -11 -10 -10 -9 ------- Run | Yrd Mat Sub Scr Traps Triggered . | . . . . Indirectly . | . . . . Trap Hack Attempts . | . . . . Triggered . | . . . . Disarmed . | . . . . Reprogrammed . | . . . . Reused . | . . . . Traps Extracted . | . . . . Installed . | . . . . Triggered . | . . . . Machines | -11 -10 -10 -9 ---------- Run | Yrd Mat Sub Scr Machines Disabled . | . . . . Max in Single Turn . | . . . . Machines Repaired . | . . . . Machines Dismantled . | . . . . Machines Sabotaged . | . . . . Overloaded Fab Kills . | . . . . Hacking | -11 -10 -10 -9 --------- Run | Yrd Mat Sub Scr Machines Accessed 12 | . 3 . 9 Terminals 3 | . 3 . . Fabricators . | . . . . Repair Stations . | . . . . Recycling Units . | . . . . Scanalyzers . | . . . . Garrison Access . | . . . . Total Hacks 69 | . 18 . 51 Successful 60 | . 9 . 51 Failed 9 | . 9 . . Catastrophic 2 | . 2 . . Database Lockouts . | . . . . Manual 16 | . 16 . . Terminals 18 | . 18 . . Fabricators . | . . . . Repair Stations . | . . . . Recycling Units . | . . . . Scanalyzers . | . . . . Garrison Access . | . . . . Terminal Hacks 57 | . 6 . 51 Record 51 | . . . 51 Robot Analysis 1 | . 1 . . Prototype ID Bank 1 | . 1 . . Branch Access Points 1 | . 1 . . Alert Level 1 | . 1 . . Recall Reinforcements 1 | . 1 . . Hauler Manifests 1 | . 1 . . Fabricator Hacks . | . . . . Repair Station Hacks . | . . . . Recycling Unit Hacks . | . . . . Scanalyzer . | . . . . Garrison Access Hacks . | . . . . Unauthorized Hacks 3 | . 3 . . Terminals 3 | . 3 . . Botnet 3 | . 3 . . Fabricators . | . . . . Repair Stations . | . . . . Recycling Units . | . . . . Scanalyzers . | . . . . Garrison Access . | . . . . Data Cores Recovered . | . . . . Used . | . . . . Hacking Detections 3 | . 3 . . Full Trace Events . | . . . . Feedback Events . | . . . . Feedback Blocked . | . . . . Robot Schematics Acquired . | . . . . Robots Built . | . . . . Authchips . | . . . . Time . | . . . . Total Robot Build Rating . | . . . . Part Schematics Acquired . | . . . . Parts Built . | . . . . Authchips . | . . . . Time . | . . . . Total Part Build Rating . | . . . . Part Studies Acquired . | . . . . Parts Repaired . | . . . . Time . | . . . . Parts Recycled . | . . . . Recycled Matter . | . . . . Retrieved Matter . | . . . . Retrieved Components . | . . . . Parts Scanalyzed . | . . . . Part Schematics Acquired . | . . . . Parts Damaged . | . . . . Bothacking | -11 -10 -10 -9 ------------ Run | Yrd Mat Sub Scr Used RIF Installer . | . . . . Robots Hacked . | . . . . Non-combat . | . . . . Combat . | . . . . Robot Hacks Applied . | . . . . Relay Couplers Released . | . . . . Fabnet Peak Effective % . | . . . . Robots Rewired . | . . . . Allies Hacked . | . . . . Hacks Repelled . | . . . . Allies | -11 -10 -10 -9 -------- Run | Yrd Mat Sub Scr Total Allies . | . . . . Largest Group . | . . . . Highest-Rated Group . | . . . . Highest-Rated Ally . | . . . . Total Orders . | . . . . Ally Attacks . | . . . . Total Damage . | . . . . Kills . | . . . . Allies Corrupted . | . . . . Allies Melted 5 | . . . 5 Intel | -11 -10 -10 -9 ------- Run | Yrd Mat Sub Scr Active Infowar (turns) 702 | 8 388 306 . Seismic 702 | 8 388 306 . Robot Analysis Total 1 | . 1 . . Derelict Logs Recovered 3 | . . . 3 Drone Launches . | . . . . Drone Recoveries . | . . . . Exploration | -11 -10 -10 -9 ------------- Run | Yrd Mat Sub Scr Turns Passed 6039 | 91 388 545 5015 Spaces Moved 2663 | 66 287 393 1917 Core 14 | 14 . . . Treads 56 | . . . 56 Legs 1660 | 52 287 214 1107 Wheels 933 | . . 179 754 Hover . | . . . . Flight . | . . . . Fastest Speed 50 | 50 120 110 130 Average Speed 220 | 105 120 124 259 Slowest Speed 750 | 120 190 150 750 Overloaded Moves . | . . . . Propulsion Burnouts . | . . . . Robots Hopped . | . . . . Potential Cave-ins . | . . . . Cave-ins Triggered . | . . . . Exploration Rate (%) 43 | 8 40 32 95 Regions Visited 3 Branch Regions 2 Pre-discovered Areas 2 | . . . 2 Known Exits Taken . | . . . . Unknown Exits Taken 3 | 1 1 1 . Scrap Searched 2 | . . . 2 Spaces Dug . | . . . . Terrain Destroyed 5 | . . 5 . Melee . | . . . . Projectile . | . . . . AOE 5 | . . 5 . Terrain Rammed . | . . . . Walls Destroyed . | . . . . Machines Disabled . | . . . . Actions | -11 -10 -10 -9 --------- Run | Yrd Mat Sub Scr Total 2779 | 76 309 425 1969 Wait 8 | . 5 1 2 Move 2660 | 65 286 392 1917 Hop . | . . . . Pick Up 30 | 1 4 8 17 Fast Attach 15 | 6 2 3 4 Attach 2 | . . . 2 Detach 7 | . 1 2 4 Swap 10 | . . 5 5 Drop 20 | . . 3 17 Fire 25 | 4 10 11 . Melee . | . . . . Ram . | . . . . Kick 1 | . 1 . . Crush . | . . . . Escape Stasis . | . . . . Rewire 1 | . . . 1 Trap . | . . . . Miscellaneous . | . . . . Route ------- -11/Scrapyard -10/Materials (discovered 4 exits: [*Mat] / *Min x2 / [*Sub]) -10/Subcaves (discovered 2 exits: [*Mat] / *Scr) -9/Scraptown (discovered 1 exit: *Fac) History --------- Turn | Location | Event 2 | -11/Scrapyard | Met Revision 17 59 | -11/Scrapyard | Discovered new exit (range 8) 92 | -11/Scrapyard | Entered Materials 172 | -10/Materials | Discovered new exit (range 16) 174 | -10/Materials | Identified exit to Mines 266 | -10/Materials | Discovered new exit (range 9) 301 | -10/Materials | Build established: Mutant 480 | -10/Materials | Entered Subcaves 481 | -10/Subcaves | Approached by a straggling Scientist 696 | -10/Subcaves | Shifting Twisted Machinery released Flamer 697 | -10/Subcaves | Shifting Twisted Machinery released Sub. Laser 732 | -10/Subcaves | Ambushed by Subdwellers from Twisted Machinery 931 | -10/Subcaves | Discovered new exit (range 8) 1025 | -10/Subcaves | Entered Scraptown 1618 | -9/Scraptown | Visited Cave Peace 1672 | -9/Scraptown | Visited Symbiants 1746 | -9/Scraptown | Scanned Subdweller tech in exchange for log data 1749 | -9/Scraptown | Learned location of 1 exit from Lower Caves 1750 | -9/Scraptown | Learned Factory trap positions 1752 | -9/Scraptown | Learned location of Testing (-2) 1780 | -9/Scraptown | Discovered new exit (range 5) 1793 | -9/Scraptown | Identified exit to Factory 1941 | -9/Scraptown | Visited SPCMW 2662 | -9/Scraptown | Visited TADAMA 2738 | -9/Scraptown | Visited Spacefarers 2943 | -9/Scraptown | Visited Comm Corps 3256 | -9/Scraptown | Visited UFD Registry 3296 | -9/Scraptown | Visited Cyclists 3540 | -9/Scraptown | Registered with UFD as "Slugdrive" 3603 | -9/Scraptown | Entered Cyclist Reading Room 3897 | -9/Scraptown | Visited Scrapoid Research Area 4023 | -9/Scraptown | Visited Botcube Research 4046 | -9/Scraptown | Found Botcube 4658 | -9/Scraptown | Visited Infowarlord's Domain 4737 | -9/Scraptown | Visited Derelict Rescue Squad 4806 | -9/Scraptown | Found DRS Beacon 4933 | -9/Scraptown | Visited Research Penetration Think Tank 4989 | -9/Scraptown | Visited Curators Association 5071 | -9/Scraptown | Visited Chapter 10 5160 | -9/Scraptown | Visited Science Testing Area 5266 | -9/Scraptown | Visited LU-1G1's Boring Crew 5662 | -9/Scraptown | Met Optimus 5662 | -9/Scraptown | Accepted into 0bPrime 5871 | -9/Scraptown | Civil war broke out across Scraptown 5943 | -9/Scraptown | Lost 5 allies 6000 | -9/Scraptown | Lost 9 allies 6006 | -9/Scraptown | Core integrity fell below 50% 6020 | -9/Scraptown | Core integrity fell below 20% 6040 | -9/Scraptown | Destroyed by 05-FBQ(j) with Overtuned Pulse Rifle Last Messages --------------- 06011_ Bolt penetrates Supplies. 06011_ Critical hit (Burn: +50). 06014_ Bolt penetrates Wall. 06015_ Ovr. Treads suddenly begins malfunctioning. 06016_ Critical hit (Burn: +50). 06021_ Penetrated by Bolt. 06025_ I8-34Y(j): "I knew Optimus was a traitor." 06025_ Penetrated by Bolt. 06026_ Critical hit (Burn: +50). 06027_ I8-34Y(j) suffers critical hit (Burn). 06028_ Battle Rifle destroyed. 06029_ Fission Core destroyed. 06030_ H1-BDH(j) destroyed. 06031_ K0-CLW(j) switches sides: "I don't know who to fight for!" 06032_ I8-34Y(j) destroyed. 06032_ K0-CLW(j) destroyed. 06033_ Penetrated by Bolt. Map ----- +----------------------------------------------------+ | | | | | | | | | | | | | | | | | | | ?????????????????????????????????????????????????? | | ?????????????????????????????????????????????????? | | ?????????????????????????????????????????????????? | | ?????????????????????????????????????????????????? | | ?????????????????????????????????????????????????? | | ?????????????????????????????????????????????????? | | ?????????????????????????????????????????????????? | | ?????????????????????????????????????????????????? | | ?????????????????????????????????????????????????? | | ?????????????????????????????????????????????????? | | ?????????????????????????????????????????????????? | | ?????????????????????????????????????????????????? | | ?????????????????????????????????????????????????? | | ???????????????????????##############???####?????? | | ???????????????????????"""##""|##"""#??## ##????? | | ??????????????????"" ##""!##""|##!!"#### =!=###### | | ??????????????????"" @ j gh*x=!!*!=%=% | | ?????????????????# p g =!j*!=[[=*!!! | | ?????????????????#####################"" %!=###### | | ??????????????????????????????????????### !!#????? | | ????????????????????????????????????????# [##?##?? | | ??###########????????????????############ #??#"## | | ??# # # #????????????????#"""""""""?# !#### "! | | ??# # """ # #????###########?# " ###*%#" "" | | ??# # "#" # #????# #?#"" ##|!##"" | | ??# # """ # #????# #?#"" ##[[##]" | | ??# #????# #?#"""" ##& ##"" | | ??# ####### #????# #?#"" " ## #" | | ??# # # #????# #?#"""" ## ##"" | | ??# # # #????# #?#"" ## ##[" | | ??# # # #????# #?#" ### ##"" | | ??# #????# #?# = # #" | | ??######### #????###### ####?######%##### ## #### | | ??????##### ########### ###########!##### ## #### | | ??????#"""" """"""""""" """"""""""!!!""""/%" "##" | | ??????#" !%=% != %="## | | ??????#" [= = ! "## | | ??????#" %! ## | | ??????#" "## | | ??#####" | | ??#"""" """""""""""""""" " """""""" ## | +----------------------------------------------------+ Best States ------------- Heat Dissipation 25 Energy Generation 18 Energy Capacity 310 Matter Stores 300 Matter Capacity 300 Sight Range 16 Terrain Scan Density 10 Propulsion Shielding 33 Evasion (%) 55 Recoil Reduction 2 Item Schematics ----------------- None Robot Schematics ------------------ None Fabricated ------------ Nothing Repaired ---------- Nothing Studied --------- None Alien Tech Used ----------------- None Achievements -------------- Bob, First Of His Name Challenges ------------ None Game ------ Seed MassDynamicTrap Manual? 0 Play Time 01:14:45 Cumulative 41.4 hours Start 2026.07.24 @ 19:05:12 End 2026.07.24 @ 23:27:03 Sessions 7 Manual Loads 0 Difficulty Rogue Special Mode None Game No. 34 Rogue 34 Adventurer 0 Explorer 0 Win Type - Total 0 Types 0/0/0/0/0/0/0/0/0/0 Lore% 32 Gallery% 36 Achievement% 23 Wizard Run 0 Options --------- Layout 2 ASCII 0 Keyboard 1 Movement Numpad Keybinds 0 Fullscreen 1 Font 24/Smallcaps Map View 50x44 Zoom Use 0% Tactical HUD 1 Map Filters NONE Filters NONE Steam 1 RUN: ae26204f-4472-4383-8028-80b489947a1d